[Event "Early-Titled-Tuesday-Blitz-April-23-2024"]
[Site "Chess.com"]
[Date "2024.04.23"]
[Round "3"]
[White "BallottiLuca"]
[Black "aljado"]
[Result "0-1"]
[WhiteElo "2381"]
[BlackElo "2156"]
[TimeControl "180+1"]
[EndTime "8:25:04 PDT"]
[Termination "aljado won by checkmate"]

1. d4 {[%clk 0:02:59.4]} 1... Nf6 {[%clk 0:02:58.9]} 2. c4 {[%clk 0:02:59.5]}
2... c5 {[%clk 0:02:56.8]} 3. d5 {[%clk 0:02:58.5]} 3... b5 {[%clk 0:02:56.6]}
4. Nf3 {[%clk 0:02:56.9]} 4... d6 {[%clk 0:02:54.7]} 5. Qc2 {[%clk 0:02:53.6]}
5... g6 {[%clk 0:02:53.2]} 6. e4 {[%clk 0:02:52.5]} 6... bxc4 {[%clk 0:02:48.7]}
7. Bxc4 {[%clk 0:02:49.5]} 7... Bg7 {[%clk 0:02:49]} 8. O-O {[%clk 0:02:47.7]}
8... Ba6 {[%clk 0:02:45.7]} 9. Bxa6 {[%clk 0:02:37.9]} 9... Nxa6 {[%clk
0:02:44.9]} 10. Qa4+ {[%clk 0:02:38.2]} 10... Nd7 {[%clk 0:02:42.2]} 11. Qxa6
{[%clk 0:02:37.8]} 11... O-O {[%clk 0:02:42.5]} 12. Nc3 {[%clk 0:02:36.3]} 12...
Rb8 {[%clk 0:02:39.7]} 13. Qd3 {[%clk 0:02:30.7]} 13... Qa5 {[%clk 0:02:36.6]}
14. Qc2 {[%clk 0:02:30.4]} 14... Qb4 {[%clk 0:02:29.3]} 15. Nd2 {[%clk
0:02:11.5]} 15... a5 {[%clk 0:02:28.5]} 16. a4 {[%clk 0:01:59.1]} 16... Ne5
{[%clk 0:02:23.3]} 17. Ra3 {[%clk 0:01:56.4]} 17... Ng4 {[%clk 0:02:19.9]} 18.
Rb3 {[%clk 0:01:44]} 18... Qd4 {[%clk 0:02:11.5]} 19. Nb5 {[%clk 0:01:37.3]}
19... Qe5 {[%clk 0:02:03.4]} 20. Nc4 {[%clk 0:01:31.9]} 20... Qxh2# {[%clk
0:02:02.8]} 0-1

[Event "Early-Titled-Tuesday-Blitz-April-23-2024"]
[Site "Chess.com"]
[Date "2024.04.23"]
[Round "3"]
[White "alex1531"]
[Black "Lupul_Cenusiu"]
[Result "1-0"]
[WhiteElo "2516"]
[BlackElo "2677"]
[TimeControl "180+1"]
[EndTime "8:25:11 PDT"]
[Termination "alex1531 won by resignation"]

1. e4 {[%clk 0:03:00.9]} 1... c6 {[%clk 0:03:00.3]} 2. Nc3 {[%clk 0:02:56.1]}
2... d5 {[%clk 0:03:01.2]} 3. Nf3 {[%clk 0:02:56.5]} 3... dxe4 {[%clk
0:02:58.5]} 4. Nxe4 {[%clk 0:02:57.4]} 4... Nf6 {[%clk 0:02:59.3]} 5. Nxf6+
{[%clk 0:02:56.4]} 5... exf6 {[%clk 0:03:00.2]} 6. d4 {[%clk 0:02:54.7]} 6...
Bd6 {[%clk 0:03:00.7]} 7. Be2 {[%clk 0:02:50.9]} 7... O-O {[%clk 0:03:01.1]} 8.
Be3 {[%clk 0:02:49.5]} 8... Bg4 {[%clk 0:03:00.6]} 9. h3 {[%clk 0:02:47.1]} 9...
Bh5 {[%clk 0:03:00.7]} 10. O-O {[%clk 0:02:34.9]} 10... Re8 {[%clk 0:03:00.8]}
11. Qd2 {[%clk 0:02:32.8]} 11... Nd7 {[%clk 0:03:00.1]} 12. c4 {[%clk 0:02:29]}
12... Nf8 {[%clk 0:02:59.3]} 13. Rfd1 {[%clk 0:02:22.3]} 13... Bc7 {[%clk
0:02:54.8]} 14. d5 {[%clk 0:02:19.6]} 14... cxd5 {[%clk 0:02:34.7]} 15. Qxd5
{[%clk 0:02:20.5]} 15... Qe7 {[%clk 0:02:25.8]} 16. Qxh5 {[%clk 0:02:15.6]}
16... g6 {[%clk 0:02:19.9]} 17. Qb5 {[%clk 0:02:00.4]} 17... f5 {[%clk 0:02:20]}
18. Bf1 {[%clk 0:01:49.2]} 18... f4 {[%clk 0:02:19.5]} 19. Bc5 {[%clk
0:01:49.1]} 19... Qe4 {[%clk 0:02:10]} 20. Bxf8 {[%clk 0:01:48.8]} 20... Rxf8
{[%clk 0:02:06.4]} 21. Re1 {[%clk 0:01:49]} 21... Qc2 {[%clk 0:02:03.3]} 22.
Qxb7 {[%clk 0:01:48.7]} 22... Bb6 {[%clk 0:02:03.1]} 23. Re2 {[%clk 0:01:46.5]}
23... Qxc4 {[%clk 0:01:58.5]} 24. Qxa8 {[%clk 0:01:41]} 1-0

[Event "Early-Titled-Tuesday-Blitz-April-23-2024"]
[Site "Chess.com"]
[Date "2024.04.23"]
[Round "3"]
[White "SlavenPastar"]
[Black "Fernando_Offermann"]
[Result "1-0"]
[WhiteElo "2627"]
[BlackElo "2446"]
[TimeControl "180+1"]
[EndTime "8:25:11 PDT"]
[Termination "SlavenPastar won by resignation"]

1. Nf3 {[%clk 0:03:00.9]} 1... g6 {[%clk 0:02:59.4]} 2. d4 {[%clk 0:03:00.1]}
2... Bg7 {[%clk 0:02:59.9]} 3. g3 {[%clk 0:03:00.8]} 3... Nf6 {[%clk 0:02:59.5]}
4. Bg2 {[%clk 0:03:01.2]} 4... O-O {[%clk 0:03:00.3]} 5. b3 {[%clk 0:03:01.9]}
5... d6 {[%clk 0:03:01.1]} 6. Bb2 {[%clk 0:03:02.3]} 6... c5 {[%clk 0:03:01.8]}
7. c4 {[%clk 0:03:02]} 7... cxd4 {[%clk 0:03:02.2]} 8. Nxd4 {[%clk 0:03:02.9]}
8... Qc7 {[%clk 0:03:00.3]} 9. O-O {[%clk 0:02:59.3]} 9... Nc6 {[%clk
0:03:00.8]} 10. Nc3 {[%clk 0:02:57.9]} 10... Nxd4 {[%clk 0:03:00.8]} 11. Qxd4
{[%clk 0:02:57]} 11... Be6 {[%clk 0:03:01.3]} 12. Rac1 {[%clk 0:02:56.3]} 12...
a6 {[%clk 0:03:01.7]} 13. Nd5 {[%clk 0:02:53.4]} 13... Bxd5 {[%clk 0:02:59]} 14.
cxd5 {[%clk 0:02:52.9]} 14... Qa5 {[%clk 0:02:59.1]} 15. a3 {[%clk 0:02:38.2]}
15... Qb5 {[%clk 0:02:56.1]} 16. Qc4 {[%clk 0:02:30.4]} 16... Qd7 {[%clk
0:02:52.3]} 17. e4 {[%clk 0:02:23.2]} 17... Rfc8 {[%clk 0:02:51.8]} 18. Qe2
{[%clk 0:02:23.8]} 18... Rxc1 {[%clk 0:02:45.4]} 19. Rxc1 {[%clk 0:02:24.7]}
19... Rc8 {[%clk 0:02:45.7]} 20. Rc4 {[%clk 0:02:18.9]} 20... b5 {[%clk
0:02:44.1]} 21. Rc6 {[%clk 0:02:03.7]} 21... e5 {[%clk 0:02:37.6]} 22. Qc2
{[%clk 0:01:56.1]} 22... Ra8 {[%clk 0:02:37.8]} 23. a4 {[%clk 0:01:50]} 23...
bxa4 {[%clk 0:02:37.2]} 24. bxa4 {[%clk 0:01:50.1]} 24... Ne8 {[%clk 0:02:38.1]}
25. Bf1 {[%clk 0:01:45.2]} 25... a5 {[%clk 0:02:34.5]} 26. Bb5 {[%clk
0:01:44.3]} 26... Qa7 {[%clk 0:02:31.9]} 27. Rc8 {[%clk 0:01:27.5]} 27... Rxc8
{[%clk 0:02:27.4]} 28. Qxc8 {[%clk 0:01:24.5]} 1-0

[Event "Early-Titled-Tuesday-Blitz-April-23-2024"]
[Site "Chess.com"]
[Date "2024.04.23"]
[Round "3"]
[White "mokerslag"]
[Black "LawrenceTrent"]
[Result "0-1"]
[WhiteElo "2501"]
[BlackElo "2707"]
[TimeControl "180+1"]
[EndTime "8:25:21 PDT"]
[Termination "LawrenceTrent won by resignation"]

1. e4 {[%clk 0:03:00]} 1... c5 {[%clk 0:02:50.9]} 2. Nf3 {[%clk 0:02:59.4]} 2...
Nc6 {[%clk 0:02:51]} 3. d4 {[%clk 0:02:59.6]} 3... cxd4 {[%clk 0:02:51.5]} 4.
Nxd4 {[%clk 0:03:00.5]} 4... Nf6 {[%clk 0:02:51.8]} 5. Nc3 {[%clk 0:03:00.8]}
5... d6 {[%clk 0:02:51.5]} 6. g3 {[%clk 0:03:00.6]} 6... g6 {[%clk 0:02:50.8]}
7. Nde2 {[%clk 0:03:00.5]} 7... Bg4 {[%clk 0:02:49.7]} 8. Bg2 {[%clk 0:03:01.4]}
8... Ne5 {[%clk 0:02:49.9]} 9. O-O {[%clk 0:02:56.1]} 9... Nf3+ {[%clk
0:02:48.3]} 10. Kh1 {[%clk 0:02:56.2]} 10... h5 {[%clk 0:02:48]} 11. Qd3 {[%clk
0:02:43.2]} 11... Ne5 {[%clk 0:02:39]} 12. Qb5+ {[%clk 0:02:43]} 12... Bd7
{[%clk 0:02:38.9]} 13. Qxb7 {[%clk 0:02:42.8]} 13... h4 {[%clk 0:02:39]} 14. Kg1
{[%clk 0:02:22.8]} 14... Rb8 {[%clk 0:02:36]} 15. Qxa7 {[%clk 0:02:22.4]} 15...
Bg7 {[%clk 0:02:34.3]} 16. Nf4 {[%clk 0:02:05.7]} 16... hxg3 {[%clk 0:02:21.3]}
17. hxg3 {[%clk 0:02:06.6]} 17... Nc6 {[%clk 0:02:16.6]} 18. Qe3 {[%clk
0:02:00.2]} 18... Ng4 {[%clk 0:02:15.9]} 19. Qe2 {[%clk 0:01:59.7]} 19... Nd4
{[%clk 0:02:04.9]} 20. Qd1 {[%clk 0:01:56.1]} 20... Nh2 {[%clk 0:01:56.7]} 21.
Re1 {[%clk 0:01:49.2]} 21... Bg4 {[%clk 0:01:56.1]} 22. f3 {[%clk 0:01:49.3]}
22... Nhxf3+ {[%clk 0:01:55.7]} 23. Kf2 {[%clk 0:01:42.1]} 23... Nxe1 {[%clk
0:01:53.1]} 24. Qxe1 {[%clk 0:01:43]} 24... Nxc2 {[%clk 0:01:52.9]} 25. Qd1
{[%clk 0:01:42.3]} 25... Bxd1 {[%clk 0:01:52.6]} 0-1

[Event "Early-Titled-Tuesday-Blitz-April-23-2024"]
[Site "Chess.com"]
[Date "2024.04.23"]
[Round "3"]
[White "soloderisas"]
[Black "Tejas_Rama"]
[Result "1-0"]
[WhiteElo "2765"]
[BlackElo "2521"]
[TimeControl "180+1"]
[EndTime "8:25:33 PDT"]
[Termination "soloderisas won by resignation"]

1. d4 {[%clk 0:03:00.9]} 1... Nf6 {[%clk 0:02:59.5]} 2. Nf3 {[%clk 0:02:59.9]}
2... d5 {[%clk 0:02:59.6]} 3. Bf4 {[%clk 0:03:00.1]} 3... c5 {[%clk 0:02:59.6]}
4. e3 {[%clk 0:03:00.7]} 4... Nc6 {[%clk 0:02:59.8]} 5. c3 {[%clk 0:03:01.2]}
5... Qb6 {[%clk 0:02:59.4]} 6. Na3 {[%clk 0:03:00.8]} 6... Nh5 {[%clk
0:02:22.1]} 7. dxc5 {[%clk 0:02:54.5]} 7... Qd8 {[%clk 0:01:47.5]} 8. Bg5 {[%clk
0:02:31.9]} 8... h6 {[%clk 0:01:37.7]} 9. Bh4 {[%clk 0:02:31.3]} 9... g5 {[%clk
0:01:38.4]} 10. Nd4 {[%clk 0:02:27.1]} 10... Ne5 {[%clk 0:01:28.7]} 11. Qxh5
{[%clk 0:02:20]} 11... Bg4 {[%clk 0:01:27.2]} 12. Bb5+ {[%clk 0:02:20.4]} 12...
Qd7 {[%clk 0:01:22.2]} 13. Bxd7+ {[%clk 0:02:19.1]} 13... Kxd7 {[%clk
0:01:23.1]} 14. Qxg4+ {[%clk 0:02:04.9]} 14... Nxg4 {[%clk 0:01:24]} 15. Bg3
{[%clk 0:02:04.6]} 15... e5 {[%clk 0:01:23.3]} 16. Nb3 {[%clk 0:02:01.9]} 16...
f5 {[%clk 0:01:17.5]} 17. h3 {[%clk 0:02:01.7]} 17... f4 {[%clk 0:01:17.4]} 18.
Bxf4 {[%clk 0:01:53.2]} 18... exf4 {[%clk 0:01:18.3]} 19. hxg4 {[%clk
0:01:52.8]} 19... Re8 {[%clk 0:01:16.7]} 20. Nc2 {[%clk 0:01:51.3]} 1-0

[Event "Early-Titled-Tuesday-Blitz-April-23-2024"]
[Site "Chess.com"]
[Date "2024.04.23"]
[Round "3"]
[White "ravengelic"]
[Black "emeli_chess"]
[Result "1-0"]
[WhiteElo "2644"]
[BlackElo "2463"]
[TimeControl "180+1"]
[EndTime "8:25:44 PDT"]
[Termination "ravengelic won by resignation"]

1. d4 {[%clk 0:03:00.9]} 1... Nf6 {[%clk 0:02:59.4]} 2. Bf4 {[%clk 0:03:01.1]}
2... d5 {[%clk 0:02:59.2]} 3. e3 {[%clk 0:03:01.7]} 3... e6 {[%clk 0:02:59.3]}
4. Nd2 {[%clk 0:03:01.8]} 4... Bd6 {[%clk 0:02:59]} 5. Bg3 {[%clk 0:03:02.5]}
5... O-O {[%clk 0:02:58.5]} 6. Ngf3 {[%clk 0:03:03]} 6... c5 {[%clk 0:02:52.4]}
7. c3 {[%clk 0:03:01.9]} 7... Qc7 {[%clk 0:02:51.6]} 8. Bd3 {[%clk 0:03:00.4]}
8... Nbd7 {[%clk 0:02:50.7]} 9. O-O {[%clk 0:03:00.8]} 9... Re8 {[%clk
0:02:50.1]} 10. c4 {[%clk 0:02:56.6]} 10... Bxg3 {[%clk 0:02:18.8]} 11. hxg3
{[%clk 0:02:57.5]} 11... e5 {[%clk 0:02:17.7]} 12. dxe5 {[%clk 0:02:47.5]} 12...
Nxe5 {[%clk 0:02:16.5]} 13. Be2 {[%clk 0:02:23.6]} 13... dxc4 {[%clk 0:02:11.2]}
14. Nxc4 {[%clk 0:02:23.4]} 14... Nxc4 {[%clk 0:02:11.3]} 15. Bxc4 {[%clk
0:02:24]} 15... Be6 {[%clk 0:02:10.7]} 16. Qb3 {[%clk 0:02:22.1]} 16... Bxc4
{[%clk 0:02:09.7]} 17. Qxc4 {[%clk 0:02:23]} 17... Re4 {[%clk 0:02:00]} 18. Qc2
{[%clk 0:02:22.2]} 18... h6 {[%clk 0:01:52.6]} 19. Rfd1 {[%clk 0:02:22.1]} 19...
b6 {[%clk 0:01:44.3]} 20. Rd2 {[%clk 0:02:22.2]} 20... Rd8 {[%clk 0:01:33]} 21.
Rad1 {[%clk 0:02:21.5]} 21... Rxd2 {[%clk 0:01:32.3]} 22. Qxd2 {[%clk
0:02:21.6]} 22... Re7 {[%clk 0:01:25.2]} 23. Qc2 {[%clk 0:02:13.9]} 23... Rd7
{[%clk 0:01:24.1]} 24. Rc1 {[%clk 0:02:14.8]} 24... Qd6 {[%clk 0:01:20.7]} 25.
a3 {[%clk 0:02:13.3]} 25... Qd3 {[%clk 0:01:19.9]} 26. Qa4 {[%clk 0:02:06.2]}
26... Ng4 {[%clk 0:01:16.4]} 27. Qxg4 {[%clk 0:02:02.4]} 1-0

[Event "Early-Titled-Tuesday-Blitz-April-23-2024"]
[Site "Chess.com"]
[Date "2024.04.23"]
[Round "3"]
[White "campochess"]
[Black "ChessSG1"]
[Result "0-1"]
[WhiteElo "2151"]
[BlackElo "2400"]
[TimeControl "180+1"]
[EndTime "8:26:06 PDT"]
[Termination "ChessSG1 won by resignation"]

1. e4 {[%clk 0:02:59.6]} 1... c5 {[%clk 0:03:00]} 2. Nc3 {[%clk 0:02:57.1]} 2...
g6 {[%clk 0:02:59.7]} 3. Bc4 {[%clk 0:02:56.3]} 3... Nc6 {[%clk 0:02:55.1]} 4.
d3 {[%clk 0:02:55.6]} 4... Bg7 {[%clk 0:02:54.5]} 5. Nf3 {[%clk 0:02:54.2]} 5...
e6 {[%clk 0:02:53.5]} 6. Bg5 {[%clk 0:02:51.8]} 6... Nge7 {[%clk 0:02:51.8]} 7.
Qd2 {[%clk 0:02:51.2]} 7... a6 {[%clk 0:02:50.8]} 8. a3 {[%clk 0:02:49.8]} 8...
h6 {[%clk 0:02:47.9]} 9. Be3 {[%clk 0:02:47.9]} 9... d5 {[%clk 0:02:46.3]} 10.
exd5 {[%clk 0:02:40.1]} 10... exd5 {[%clk 0:02:46.4]} 11. Bxc5 {[%clk 0:02:40]}
11... dxc4 {[%clk 0:02:46.2]} 12. dxc4 {[%clk 0:02:37.1]} 12... Qxd2+ {[%clk
0:02:45]} 13. Nxd2 {[%clk 0:02:36.8]} 13... Bxc3 {[%clk 0:02:40.6]} 14. bxc3
{[%clk 0:02:35.8]} 14... O-O {[%clk 0:02:40.4]} 15. O-O {[%clk 0:02:34.2]} 15...
Be6 {[%clk 0:02:35.1]} 16. Rab1 {[%clk 0:02:31]} 16... Rfd8 {[%clk 0:02:31.9]}
17. Bd4 {[%clk 0:02:17]} 17... Nxd4 {[%clk 0:02:31.3]} 18. cxd4 {[%clk
0:02:15.5]} 18... Rxd4 {[%clk 0:02:31.4]} 19. Nf3 {[%clk 0:02:15.7]} 19... Rxc4
{[%clk 0:02:30.9]} 20. Rxb7 {[%clk 0:02:13.8]} 20... Nc6 {[%clk 0:02:30.1]} 21.
Re1 {[%clk 0:02:09.1]} 21... Rxc2 {[%clk 0:02:28.5]} 22. h3 {[%clk 0:02:08.3]}
22... Rb8 {[%clk 0:02:25.9]} 23. Rc7 {[%clk 0:02:07]} 23... Rc8 {[%clk
0:02:22.7]} 24. Rb7 {[%clk 0:02:04.9]} 24... Bd5 {[%clk 0:02:11.7]} 25. Nh2
{[%clk 0:01:57.3]} 25... Nd4 {[%clk 0:02:08.1]} 26. Rd7 {[%clk 0:01:56.8]} 26...
Ne2+ {[%clk 0:02:04]} 27. Kh1 {[%clk 0:01:55.9]} 27... Rc1 {[%clk 0:01:53.2]}
28. Rf1 {[%clk 0:01:40.9]} 28... Nf4 {[%clk 0:01:41.6]} 29. f3 {[%clk
0:01:38.7]} 29... Rxf1+ {[%clk 0:01:37.4]} 30. Nxf1 {[%clk 0:01:37.6]} 30... Rc1
{[%clk 0:01:38.2]} 31. Kg1 {[%clk 0:01:37.8]} 31... Bc4 {[%clk 0:01:37.9]} 32.
Rd4 {[%clk 0:01:36.3]} 32... Ne2+ {[%clk 0:01:30]} 0-1

[Event "Early-Titled-Tuesday-Blitz-April-23-2024"]
[Site "Chess.com"]
[Date "2024.04.23"]
[Round "3"]
[White "Acva-Alenok"]
[Black "wannabe2700"]
[Result "0-1"]
[WhiteElo "2350"]
[BlackElo "2608"]
[TimeControl "180+1"]
[EndTime "8:26:17 PDT"]
[Termination "wannabe2700 won by resignation"]

1. d4 {[%clk 0:03:00.9]} 1... f5 {[%clk 0:02:59.6]} 2. c4 {[%clk 0:02:59.1]}
2... Nf6 {[%clk 0:03:00.1]} 3. g3 {[%clk 0:02:59.4]} 3... g6 {[%clk 0:03:00.7]}
4. Bg2 {[%clk 0:02:59.3]} 4... Bg7 {[%clk 0:03:01.4]} 5. Nf3 {[%clk 0:02:58.7]}
5... O-O {[%clk 0:03:02.3]} 6. O-O {[%clk 0:02:58.3]} 6... d6 {[%clk 0:03:03.2]}
7. b3 {[%clk 0:02:55.4]} 7... c6 {[%clk 0:03:04.1]} 8. Bb2 {[%clk 0:02:54.9]}
8... Na6 {[%clk 0:03:04.4]} 9. Nbd2 {[%clk 0:02:52.7]} 9... Qe8 {[%clk
0:03:01.6]} 10. Qc2 {[%clk 0:02:51.5]} 10... h6 {[%clk 0:02:54.7]} 11. Rae1
{[%clk 0:02:45.6]} 11... Qf7 {[%clk 0:02:50.3]} 12. e4 {[%clk 0:02:26.3]} 12...
f4 {[%clk 0:02:47.9]} 13. e5 {[%clk 0:02:11.5]} 13... Nh5 {[%clk 0:02:47.5]} 14.
Nh4 {[%clk 0:01:47.2]} 14... g5 {[%clk 0:02:45.8]} 15. Be4 {[%clk 0:01:14.8]}
15... Nb4 {[%clk 0:02:37.4]} 16. Bh7+ {[%clk 0:01:12.2]} 16... Kh8 {[%clk
0:02:35.6]} 17. Ng6+ {[%clk 0:01:12.8]} 17... Kxh7 {[%clk 0:02:34.6]} 18. Nxf8+
{[%clk 0:00:45.3]} 18... Kg8 {[%clk 0:02:35.1]} 19. Qh7+ {[%clk 0:00:18.2]}
19... Kxf8 {[%clk 0:02:35.1]} 20. exd6 {[%clk 0:00:19.1]} 20... exd6 {[%clk
0:02:33.8]} 21. Ne4 {[%clk 0:00:18]} 21... Bf5 {[%clk 0:02:33.7]} 22. Nxd6
{[%clk 0:00:18]} 22... Bxh7 {[%clk 0:02:32.8]} 23. Nxf7 {[%clk 0:00:18.2]} 23...
Kxf7 {[%clk 0:02:33.7]} 24. Ba3 {[%clk 0:00:18.2]} 24... a5 {[%clk 0:02:33]} 25.
d5 {[%clk 0:00:15.9]} 25... Bd3 {[%clk 0:02:31.7]} 0-1

[Event "Early-Titled-Tuesday-Blitz-April-23-2024"]
[Site "Chess.com"]
[Date "2024.04.23"]
[Round "3"]
[White "H3nriqueTV"]
[Black "Shankland"]
[Result "0-1"]
[WhiteElo "2305"]
[BlackElo "3052"]
[TimeControl "180+1"]
[EndTime "8:26:24 PDT"]
[Termination "Shankland won by resignation"]

1. e4 {[%clk 0:02:42]} 1... c5 {[%clk 0:02:59.1]} 2. Nf3 {[%clk 0:02:37.3]} 2...
d6 {[%clk 0:02:59.4]} 3. b3 {[%clk 0:02:34.3]} 3... Nf6 {[%clk 0:02:58.7]} 4.
Nc3 {[%clk 0:02:34.4]} 4... g6 {[%clk 0:02:58.7]} 5. Bb2 {[%clk 0:02:34.5]} 5...
Bg7 {[%clk 0:02:58.8]} 6. d4 {[%clk 0:02:35.1]} 6... cxd4 {[%clk 0:02:58.4]} 7.
Nxd4 {[%clk 0:02:36]} 7... O-O {[%clk 0:02:57.7]} 8. Bc4 {[%clk 0:02:30.4]} 8...
Nxe4 {[%clk 0:02:54.1]} 9. Bxf7+ {[%clk 0:02:28]} 9... Rxf7 {[%clk 0:02:53.2]}
10. Nxe4 {[%clk 0:02:28.9]} 10... h6 {[%clk 0:02:37.6]} 11. O-O {[%clk
0:02:16.5]} 11... d5 {[%clk 0:02:37.7]} 12. Nc5 {[%clk 0:01:55.8]} 12... Qd6
{[%clk 0:02:37.3]} 13. b4 {[%clk 0:01:51.5]} 13... a6 {[%clk 0:02:27.4]} 14. Rb1
{[%clk 0:01:27]} 14... e5 {[%clk 0:02:25]} 15. Ndb3 {[%clk 0:01:25]} 15... Nc6
{[%clk 0:02:20.8]} 16. a3 {[%clk 0:01:22.6]} 16... Bf5 {[%clk 0:02:20]} 17. Re1
{[%clk 0:01:21.5]} 17... Raf8 {[%clk 0:02:19.4]} 18. Qd2 {[%clk 0:01:13.1]}
18... d4 {[%clk 0:02:09.9]} 19. Ne4 {[%clk 0:00:56.1]} 19... Qd5 {[%clk
0:02:08.8]} 20. Nbc5 {[%clk 0:00:51.3]} 20... b6 {[%clk 0:02:05.8]} 21. c4
{[%clk 0:00:51.5]} 21... Qd8 {[%clk 0:01:59.5]} 22. Nd3 {[%clk 0:00:51.5]} 22...
g5 {[%clk 0:01:55.2]} 23. Rf1 {[%clk 0:00:31.4]} 23... Bxe4 {[%clk 0:01:54.7]}
0-1

[Event "Early-Titled-Tuesday-Blitz-April-23-2024"]
[Site "Chess.com"]
[Date "2024.04.23"]
[Round "3"]
[White "thesupera12"]
[Black "carloseduar100"]
[Result "1-0"]
[WhiteElo "2440"]
[BlackElo "2240"]
[TimeControl "180+1"]
[EndTime "8:26:25 PDT"]
[Termination "thesupera12 won by resignation"]

1. d4 {[%clk 0:03:00.9]} 1... d5 {[%clk 0:02:59.2]} 2. c4 {[%clk 0:02:59]} 2...
e5 {[%clk 0:02:59.5]} 3. dxe5 {[%clk 0:02:56.5]} 3... d4 {[%clk 0:03:00.4]} 4.
Nf3 {[%clk 0:02:55.8]} 4... Nc6 {[%clk 0:03:00.6]} 5. a3 {[%clk 0:02:55.1]} 5...
Nge7 {[%clk 0:03:00.3]} 6. g3 {[%clk 0:02:55]} 6... Ng6 {[%clk 0:03:00.7]} 7.
Bg2 {[%clk 0:02:55.6]} 7... Ngxe5 {[%clk 0:03:01.1]} 8. Nxe5 {[%clk 0:02:52.7]}
8... Nxe5 {[%clk 0:03:02]} 9. O-O {[%clk 0:02:50.5]} 9... Be7 {[%clk 0:03:01.4]}
10. Bf4 {[%clk 0:02:49.2]} 10... Ng6 {[%clk 0:02:56.6]} 11. Qc1 {[%clk
0:02:35.3]} 11... Nxf4 {[%clk 0:02:55.3]} 12. Qxf4 {[%clk 0:02:34.6]} 12... O-O
{[%clk 0:02:56]} 13. Rd1 {[%clk 0:02:33.1]} 13... Bf6 {[%clk 0:02:53.6]} 14. Nd2
{[%clk 0:02:32.5]} 14... Qe7 {[%clk 0:02:34.6]} 15. Ne4 {[%clk 0:02:28.1]} 15...
Be5 {[%clk 0:02:34.6]} 16. Qg5 {[%clk 0:02:27.3]} 16... Re8 {[%clk 0:01:59.9]}
17. Qxe7 {[%clk 0:02:22.4]} 17... Rxe7 {[%clk 0:01:59]} 18. f4 {[%clk
0:02:23.1]} 18... f5 {[%clk 0:01:47.8]} 19. fxe5 {[%clk 0:02:18.6]} 19... fxe4
{[%clk 0:01:48]} 20. Rxd4 {[%clk 0:02:15.5]} 20... Rxe5 {[%clk 0:01:48.2]} 21.
Rd8+ {[%clk 0:02:14]} 21... Kf7 {[%clk 0:01:46.6]} 22. Rf1+ {[%clk 0:02:09.9]}
22... Ke7 {[%clk 0:01:42.9]} 23. Rff8 {[%clk 0:02:09.2]} 23... Rc5 {[%clk
0:01:10.2]} 24. b3 {[%clk 0:02:07.7]} 24... Ra5 {[%clk 0:01:10]} 25. a4 {[%clk
0:02:07.8]} 25... Ra6 {[%clk 0:00:48.1]} 26. Rxc8 {[%clk 0:02:05.4]} 26... Rxc8
{[%clk 0:00:45]} 27. Rxc8 {[%clk 0:02:06.3]} 27... Kd7 {[%clk 0:00:44.4]} 28.
Rg8 {[%clk 0:02:06]} 28... g6 {[%clk 0:00:44.6]} 29. Bxe4 {[%clk 0:02:03.7]}
29... Rb6 {[%clk 0:00:44.4]} 30. Bc2 {[%clk 0:02:03.1]} 1-0

[Event "Early-Titled-Tuesday-Blitz-April-23-2024"]
[Site "Chess.com"]
[Date "2024.04.23"]
[Round "3"]
[White "MyDream003"]
[Black "MagnusCarlsen"]
[Result "0-1"]
[WhiteElo "2813"]
[BlackElo "3220"]
[TimeControl "180+1"]
[EndTime "8:26:31 PDT"]
[Termination "MagnusCarlsen won by resignation"]

1. e4 {[%clk 0:03:00.1]} 1... Nc6 {[%clk 0:03:00.9]} 2. Nf3 {[%clk 0:02:58.7]}
2... d6 {[%clk 0:02:48.8]} 3. d4 {[%clk 0:02:57.5]} 3... Nf6 {[%clk 0:02:49.5]}
4. Nc3 {[%clk 0:02:56.3]} 4... Bg4 {[%clk 0:02:48.2]} 5. Be2 {[%clk 0:02:55.3]}
5... g6 {[%clk 0:02:47.9]} 6. O-O {[%clk 0:02:54.7]} 6... Bg7 {[%clk 0:02:48.1]}
7. Be3 {[%clk 0:02:54.9]} 7... O-O {[%clk 0:02:48.2]} 8. d5 {[%clk 0:02:42.8]}
8... Nb8 {[%clk 0:02:42.9]} 9. h3 {[%clk 0:02:39.6]} 9... Bxf3 {[%clk
0:02:43.3]} 10. Bxf3 {[%clk 0:02:40.5]} 10... c6 {[%clk 0:02:44]} 11. a4 {[%clk
0:02:39.5]} 11... a5 {[%clk 0:02:43]} 12. Re1 {[%clk 0:02:39.1]} 12... Nfd7
{[%clk 0:02:43]} 13. Qd2 {[%clk 0:02:28.2]} 13... Na6 {[%clk 0:02:43.1]} 14. Be2
{[%clk 0:02:27.3]} 14... Nac5 {[%clk 0:02:43.1]} 15. Bf3 {[%clk 0:02:17]} 15...
Qb6 {[%clk 0:02:40.2]} 16. Rab1 {[%clk 0:02:08.7]} 16... Qb4 {[%clk 0:02:38]}
17. Bg4 {[%clk 0:01:40.6]} 17... Ne5 {[%clk 0:02:33.4]} 18. Bxc5 {[%clk
0:01:36.5]} 18... Qxc5 {[%clk 0:02:31.1]} 19. Be2 {[%clk 0:01:36.9]} 19... f5
{[%clk 0:02:29.6]} 20. dxc6 {[%clk 0:01:26.5]} 20... bxc6 {[%clk 0:02:30.5]} 21.
exf5 {[%clk 0:01:21.6]} 21... gxf5 {[%clk 0:02:26.8]} 22. Kh1 {[%clk 0:01:09.7]}
22... Rab8 {[%clk 0:02:27.1]} 23. f4 {[%clk 0:01:08.5]} 23... Ng6 {[%clk
0:02:27.2]} 24. Bh5 {[%clk 0:01:04.9]} 24... Rxb2 {[%clk 0:02:21.2]} 25. Rxb2
{[%clk 0:00:59.3]} 25... Bxc3 {[%clk 0:02:20.5]} 26. Qc1 {[%clk 0:00:59.9]}
26... Bxb2 {[%clk 0:02:18.8]} 27. Qxb2 {[%clk 0:01:00.4]} 27... Nxf4 {[%clk
0:02:19.5]} 28. Rxe7 {[%clk 0:01:00.6]} 28... Nxh5 {[%clk 0:02:17]} 29. Qc1
{[%clk 0:00:52]} 29... f4 {[%clk 0:02:14.8]} 30. Qa1 {[%clk 0:00:49.8]} 30...
Qg5 {[%clk 0:02:10.6]} 31. Qa2+ {[%clk 0:00:49.8]} 31... d5 {[%clk 0:02:10.6]}
32. Qa3 {[%clk 0:00:48.9]} 32... Ng3+ {[%clk 0:02:04.2]} 33. Kh2 {[%clk
0:00:48]} 33... Ne4 {[%clk 0:02:04.8]} 0-1